[Event "Swedish Chess Championship 2019: Kadett-SM"]
[Site "Stiga Sports Arena, Arenatorget 1, Eskilstuna, Sweden, Sweden"]
[Date "2019.07.14"]
[Round "9.2"]
[White "Zarytovskaya, Margo"]
[Black "Hall, Alexander"]
[Result "0-1"]
[TimeControl "90 minutes for 40 moves + 30 minutes for the rest of the game + 30 seconds per move from move one"]
[WhiteFideId "14149249"]
[BlackFideId "1738933"]
[WhiteElo "1895"]
[BlackElo "1805"]

1. e4 {[%clk 01:30:58]} {[%emt 00:00:01]} c5 {[%clk 01:30:38]} {[%emt
00:00:23]} 2. Nf3 {[%clk 01:31:22]} {[%emt 00:00:05]} Nc6 {[%clk 01:30:59]}
{[%emt 00:00:09]} 3. d4 {[%clk 01:31:47]} {[%emt 00:00:05]} cxd4 {[%clk
01:31:25]} {[%emt 00:00:04]} 4. Nxd4 {[%clk 01:32:14]} {[%emt 00:00:02]} g6
{[%clk 01:31:51]} {[%emt 00:00:05]} 5. c4 {[%clk 01:32:34]} {[%emt 00:00:10]}
Nf6 {[%clk 01:31:42]} {[%emt 00:00:38]} 6. Nc3 {[%clk 01:32:45]} {[%emt
00:00:18]} d6 {[%clk 01:32:08]} {[%emt 00:00:05]} 7. Be2 {[%clk 01:32:19]}
{[%emt 00:00:56]} Nxd4 {[%clk 01:32:29]} {[%emt 00:00:09]} 8. Qxd4 {[%clk
01:32:43]} {[%emt 00:00:05]} Bg7 {[%clk 01:32:56]} {[%emt 00:00:03]} 9. Be3
{[%clk 01:33:00]} {[%emt 00:00:13]} O-O {[%clk 01:33:19]} {[%emt 00:00:07]} 10.
Qd2 {[%clk 01:33:23]} {[%emt 00:00:08]} Be6 {[%clk 01:33:01]} {[%emt 00:00:47]}
11. O-O {[%clk 01:33:04]} {[%emt 00:00:49]} Qa5 {[%clk 01:31:31]} {[%emt
00:02:00]} 12. Rab1 {[%clk 01:32:59]} {[%emt 00:00:35]} Qb4 {[%clk 01:20:02]}
{[%emt 00:12:00]} 13. b3 {[%clk 01:32:02]} {[%emt 00:01:27]} Rfc8 {[%clk
01:15:36]} {[%emt 00:04:56]} 14. Rfd1 {[%clk 01:26:39]} {[%emt 00:05:53]} a6
{[%clk 01:02:02]} {[%emt 00:14:04]} 15. Bd4 {[%clk 01:18:39]} {[%emt 00:08:30]}
Kf8 {[%clk 00:45:39]} {[%emt 00:16:52]} 16. Qe3 {[%clk 01:13:05]} {[%emt
00:06:04]} Nd7 {[%clk 00:42:35]} {[%emt 00:03:34]} 17. a3 {[%clk 01:04:54]}
{[%emt 00:08:42]} Qa5 {[%clk 00:41:06]} {[%emt 00:01:58]} 18. b4 {[%clk
01:03:50]} {[%emt 00:01:34]} Bxd4 {[%clk 00:39:50]} {[%emt 00:01:46]} 19. Rxd4
{[%clk 00:59:34]} {[%emt 00:04:47]} Qxa3 {[%clk 00:35:45]} {[%emt 00:04:35]} 20.
Qh6+ {[%clk 00:54:45]} {[%emt 00:05:18]} Kg8 {[%clk 00:36:04]} {[%emt
00:00:11]} 21. Rd3 {[%clk 00:54:10]} {[%emt 00:01:05]} Bxc4 {[%clk 00:14:43]}
{[%emt 00:21:51]} 22. Rh3 {[%clk 00:49:56]} {[%emt 00:04:44]} Nf8 {[%clk
00:11:46]} {[%emt 00:03:27]} 23. Bxc4 {[%clk 00:43:23]} {[%emt 00:07:04]} Rxc4
{[%clk 00:12:05]} {[%emt 00:00:10]} 24. Nd5 {[%clk 00:43:41]} {[%emt 00:00:11]}
Qa2 {[%clk 00:10:46]} {[%emt 00:01:49]} 25. Nxe7+ {[%clk 00:43:44]} {[%emt
00:00:28]} Kh8 {[%clk 00:11:10]} {[%emt 00:00:06]} 26. Rf1 {[%clk 00:43:24]}
{[%emt 00:00:50]} Rxe4 {[%clk 00:09:34]} {[%emt 00:02:06]} 27. Qg5 {[%clk
00:40:51]} {[%emt 00:03:03]} Qe6 {[%clk 00:08:02]} {[%emt 00:02:02]} 28. Re3
{[%clk 00:37:58]} {[%emt 00:03:22]} Qe5 {[%clk 00:04:12]} {[%emt 00:04:15]} 29.
Qxe5+ {[%clk 00:36:45]} {[%emt 00:01:49]} Rxe5 {[%clk 00:04:32]} {[%emt
00:00:10]} 30. Rfe1 {[%clk 00:37:04]} {[%emt 00:00:10]} Nd7 {[%clk 00:04:11]}
{[%emt 00:00:52]} 31. f4 {[%clk 00:36:40]} {[%emt 00:00:54]} Rxe3 {[%clk
00:03:52]} {[%emt 00:00:49]} 32. Rxe3 {[%clk 00:37:07]} {[%emt 00:00:03]} Nf6
{[%clk 00:03:54]} {[%emt 00:00:27]} 33. h3 {[%clk 00:37:05]} {[%emt 00:00:34]}
Re8 {[%clk 00:03:07]} {[%emt 00:01:17]} 34. g4 {[%clk 00:37:01]} {[%emt
00:00:34]} Kg7 {[%clk 00:03:12]} {[%emt 00:00:25]} 35. g5 {[%clk 00:37:01]}
{[%emt 00:00:30]} Ng8 {[%clk 00:02:45]} {[%emt 00:00:51]} 36. Nf5+ {[%clk
00:37:11]} {[%emt 00:00:26]} Kf8 {[%clk 00:03:07]} {[%emt 00:00:09]} 37. Rxe8+
{[%clk 00:37:35]} {[%emt 00:00:06]} Kxe8 {[%clk 00:03:36]} {[%emt 00:00:01]} 38.
Nxd6+ {[%clk 00:38:01]} {[%emt 00:00:04]} Kd7 {[%clk 00:03:21]} {[%emt
00:00:41]} 39. Nxb7 {[%clk 00:37:40]} {[%emt 00:00:54]} Kc6 {[%emt 00:00:39]}
40. Nc5 {[%clk 00:35:50]} {[%emt 00:02:18]} a5 {[%clk 00:02:27]} {[%emt
00:01:17]} 41. Nd3 {[%clk 00:35:20]} {[%emt 00:01:00]} a4 {[%clk 00:02:04]}
{[%emt 00:00:54]} 42. Nc1 {[%clk 00:35:36]} {[%emt 00:00:14]} Kb5 {[%clk
00:01:55]} {[%emt 00:00:39]} 43. Na2 {[%clk 00:35:59]} {[%emt 00:00:07]} Ne7
{[%clk 00:29:02]} {[%emt 00:03:23]} 44. Kf2 {[%clk 01:05:08]} {[%emt 00:01:20]}
Nd5 {[%clk 00:27:28]} {[%emt 00:02:04]} 45. Kf3 {[%clk 01:05:32]} {[%emt
00:00:07]} a3 {[%clk 00:22:50]} {[%emt 00:05:08]} 46. Ke4 {[%clk 01:04:43]}
{[%emt 00:01:19]} Nxb4 {[%clk 00:22:39]} {[%emt 00:00:40]} 47. Nc1 {[%clk
01:04:34]} {[%emt 00:00:39]} Kc4 {[%clk 00:21:11]} {[%emt 00:01:58]} 48. Ke5
{[%clk 01:03:03]} {[%emt 00:02:02]} Nd3+ {[%clk 00:20:10]} {[%emt 00:01:30]} 49.
Kf6 {[%clk 01:03:29]} {[%emt 00:00:04]} Nxc1 {[%clk 00:17:53]} {[%emt
00:02:48]} 50. Kxf7 {[%clk 01:03:55]} {[%emt 00:00:04]} a2 {[%clk 00:11:58]}
{[%emt 00:06:25]} 51. Kg7 {[%clk 01:04:21]} {[%emt 00:00:04]} a1=Q+ {[%clk
00:12:03]} {[%emt 00:00:25]} 52. Kxh7 {[%clk 01:04:48]} {[%emt 00:00:04]} Qb1
{[%clk 00:12:14]} {[%emt 00:00:17]} 0-1

[Event "Swedish Chess Championship 2019: Kadett-SM"]
[Site "Stiga Sports Arena, Arenatorget 1, Eskilstuna, Sweden, Sweden"]
[Date "2019.07.14"]
[Round "9.3"]
[White "Mitra, Akash"]
[Black "Muntean, Victor"]
[Result "0-1"]
[TimeControl "90 minutes for 40 moves + 30 minutes for the rest of the game + 30 seconds per move from move one"]
[WhiteFideId "1726714"]
[BlackFideId "1054414"]
[WhiteElo "1957"]
[BlackElo "1971"]

1. f4 {[%clk 01:30:03]} {[%emt 00:00:56]} d5 {[%clk 01:29:30]} {[%emt
00:01:31]} 2. Nf3 {[%clk 01:30:24]} {[%emt 00:00:08]} c5 {[%clk 01:28:44]}
{[%emt 00:01:16]} 3. g3 {[%clk 01:30:49]} {[%emt 00:00:05]} g6 {[%clk
01:23:13]} {[%emt 00:06:02]} 4. Bg2 {[%clk 01:31:13]} {[%emt 00:00:05]} Bg7
{[%clk 01:23:36]} {[%emt 00:00:08]} 5. O-O {[%clk 01:31:39]} {[%emt 00:00:04]}
Nc6 {[%clk 01:14:06]} {[%emt 00:10:00]} 6. d3 {[%clk 01:29:31]} {[%emt
00:02:36]} Nf6 {[%clk 01:12:47]} {[%emt 00:01:52]} 7. Qe1 {[%clk 01:26:28]}
{[%emt 00:03:32]} Bf5 {[%clk 00:59:32]} {[%emt 00:13:45]} 8. h3 {[%clk
01:25:52]} {[%emt 00:01:05]} Qc7 {[%clk 00:57:29]} {[%emt 00:02:34]} 9. g4
{[%clk 01:11:42]} {[%emt 00:14:40]} Bd7 {[%clk 00:57:37]} {[%emt 00:00:22]} 10.
e4 {[%clk 01:10:13]} {[%emt 00:01:58]} e5 {[%clk 00:53:57]} {[%emt 00:04:10]}
11. exd5 {[%clk 00:55:41]} {[%emt 00:15:02]} Nxd5 {[%clk 00:52:05]} {[%emt
00:02:22]} 12. Nxe5 {[%clk 00:48:30]} {[%emt 00:07:41]} Nde7 {[%clk 00:52:09]}
{[%emt 00:00:27]} 13. Nxd7 {[%clk 00:46:01]} {[%emt 00:02:58]} Qxd7 {[%clk
00:52:27]} {[%emt 00:00:13]} 14. Nc3 {[%clk 00:45:55]} {[%emt 00:00:35]} O-O
{[%clk 00:50:37]} {[%emt 00:02:20]} 15. Be3 {[%clk 00:43:39]} {[%emt 00:02:45]}
Nd4 {[%clk 00:47:25]} {[%emt 00:03:43]} 16. Qf2 {[%clk 00:42:14]} {[%emt
00:01:54]} Rad8 {[%clk 00:45:11]} {[%emt 00:02:45]} 17. Kh1 {[%clk 00:41:08]}
{[%emt 00:01:36]} f5 {[%clk 00:41:53]} {[%emt 00:03:49]} 18. g5 {[%clk
00:39:16]} {[%emt 00:02:21]} b5 {[%clk 00:41:21]} {[%emt 00:01:02]} 19. Qd2
{[%clk 00:29:36]} {[%emt 00:10:10]} Rfe8 {[%clk 00:38:08]} {[%emt 00:03:43]} 20.
Rab1 {[%clk 00:28:14]} {[%emt 00:01:52]} b4 {[%clk 00:35:33]} {[%emt 00:03:06]}
21. Ne2 {[%clk 00:27:42]} {[%emt 00:01:01]} Nxe2 {[%clk 00:34:32]} {[%emt
00:01:32]} 22. Qxe2 {[%clk 00:27:10]} {[%emt 00:01:02]} Nd5 {[%clk 00:34:31]}
{[%emt 00:00:31]} 23. Bxd5+ {[%clk 00:18:00]} {[%emt 00:09:40]} Qxd5+ {[%clk
00:34:54]} {[%emt 00:00:07]} 24. Kh2 {[%clk 00:17:06]} {[%emt 00:01:23]} Bd4
{[%clk 00:33:31]} {[%emt 00:01:54]} 25. Rf3 {[%clk 00:17:21]} {[%emt 00:00:15]}
Rd6 {[%clk 00:26:38]} {[%emt 00:07:24]} 26. Kg3 {[%clk 00:11:45]} {[%emt
00:06:06]} Rde6 {[%clk 00:25:57]} {[%emt 00:01:12]} 27. Re1 {[%clk 00:11:50]}
{[%emt 00:00:25]} Rxe3 {[%clk 00:25:36]} {[%emt 00:00:51]} 28. Rxe3 {[%clk
00:12:08]} {[%emt 00:00:12]} Rxe3+ {[%clk 00:25:59]} {[%emt 00:00:06]} 29. Qxe3
{[%clk 00:12:33]} {[%emt 00:00:04]} Bxe3 {[%clk 00:26:21]} {[%emt 00:00:08]} 30.
Rxe3 {[%clk 00:13:00]} {[%emt 00:00:03]} Qxa2 {[%clk 00:26:11]} {[%emt
00:00:41]} 31. Re7 {[%clk 00:13:08]} {[%emt 00:00:21]} Qxb2 {[%clk 00:26:24]}
{[%emt 00:00:18]} 32. Rxa7 {[%clk 00:13:30]} {[%emt 00:00:08]} Qxc2 {[%clk
00:26:49]} {[%emt 00:00:05]} 33. Ra8+ {[%clk 00:13:52]} {[%emt 00:00:08]} Kf7
{[%clk 00:27:10]} {[%emt 00:00:08]} 34. Ra7+ {[%clk 00:14:11]} {[%emt
00:00:11]} Ke6 {[%clk 00:27:33]} {[%emt 00:00:07]} 35. Ra6+ {[%clk 00:14:34]}
{[%emt 00:00:08]} Kd5 {[%clk 00:27:58]} {[%emt 00:00:05]} 0-1

[Event "Swedish Chess Championship 2019: Kadett-SM"]
[Site "Stiga Sports Arena, Arenatorget 1, Eskilstuna, Sweden, Sweden"]
[Date "2019.07.14"]
[Round "9.4"]
[White "Dingertz, Erik"]
[Black "Alfredsson, Daniel"]
[Result "1/2-1/2"]
[TimeControl "90 minutes for 40 moves + 30 minutes for the rest of the game + 30 seconds per move from move one"]
[WhiteFideId "1741578"]
[BlackFideId "1742205"]
[WhiteElo "1959"]
[BlackElo "1652"]

1. c4 {[%clk 01:30:48]} {[%emt 00:00:11]} c6 {[%clk 01:30:54]} {[%emt
00:00:08]} 2. g3 {[%clk 01:31:14]} {[%emt 00:00:04]} d5 {[%clk 01:31:09]}
{[%emt 00:00:15]} 3. Bg2 {[%clk 01:31:39]} {[%emt 00:00:04]} Bf5 {[%clk
01:30:30]} {[%emt 00:01:09]} 4. Nf3 {[%clk 01:32:00]} {[%emt 00:00:09]} Nf6
{[%clk 01:30:12]} {[%emt 00:00:48]} 5. Qb3 {[%clk 01:32:20]} {[%emt 00:00:10]}
Qb6 {[%clk 01:29:39]} {[%emt 00:01:04]} 6. O-O {[%clk 01:30:27]} {[%emt
00:02:23]} e6 {[%clk 01:28:22]} {[%emt 00:01:48]} 7. d3 {[%clk 01:29:03]}
{[%emt 00:01:54]} Nbd7 {[%clk 01:24:45]} {[%emt 00:04:07]} 8. Nc3 {[%clk
01:27:37]} {[%emt 00:01:55]} Nc5 {[%clk 01:22:03]} {[%emt 00:03:12]} 9. Qxb6
{[%clk 01:25:22]} {[%emt 00:02:45]} axb6 {[%clk 01:22:21]} {[%emt 00:00:12]} 10.
Nd4 {[%clk 01:24:35]} {[%emt 00:01:16]} Bg6 {[%clk 01:22:05]} {[%emt 00:00:45]}
11. cxd5 {[%emt 00:01:34]} exd5 {[%clk 01:21:21]} {[%emt 00:00:11]} 12. Bf4
{[%clk 01:21:13]} {[%emt 00:03:52]} Ne6 {[%clk 01:15:17]} {[%emt 00:06:35]} 13.
Nxe6 {[%clk 01:20:14]} {[%emt 00:01:29]} fxe6 {[%clk 01:14:42]} {[%emt
00:01:05]} 14. e4 {[%clk 01:20:20]} {[%emt 00:00:23]} d4 {[%clk 00:58:27]}
{[%emt 00:16:46]} 15. Ne2 {[%clk 01:20:19]} {[%emt 00:00:30]} c5 {[%clk
00:58:49]} {[%emt 00:00:08]} 16. Bc7 {[%clk 01:14:56]} {[%emt 00:05:54]} Ra6
{[%clk 00:56:52]} {[%emt 00:02:28]} 17. Bh3 {[%clk 01:10:13]} {[%emt 00:05:11]}
Kd7 {[%clk 00:55:30]} {[%emt 00:01:53]} 18. Be5 {[%clk 01:10:15]} {[%emt
00:00:26]} Bd6 {[%clk 00:54:00]} {[%emt 00:02:02]} 19. Bxd6 {[%clk 01:10:02]}
{[%emt 00:00:43]} Kxd6 {[%clk 00:54:15]} {[%emt 00:00:15]} 20. f4 {[%clk
01:10:04]} {[%emt 00:00:28]} Ke7 {[%clk 00:39:47]} {[%emt 00:14:58]} 21. Nc1
{[%clk 01:01:09]} {[%emt 00:09:25]} b5 {[%clk 00:36:44]} {[%emt 00:03:33]} 22.
Nb3 {[%clk 00:58:15]} {[%emt 00:03:24]} b6 {[%clk 00:35:03]} {[%emt 00:02:11]}
23. Nd2 {[%clk 00:57:33]} {[%emt 00:01:12]} Bh5 {[%clk 00:26:40]} {[%emt
00:08:53]} 24. Rfe1 {[%clk 00:51:48]} {[%emt 00:06:14]} Rha8 {[%clk 00:25:42]}
{[%emt 00:01:28]} 25. a3 {[%clk 00:43:51]} {[%emt 00:08:27]} b4 {[%clk
00:25:02]} {[%emt 00:01:09]} 26. Nc4 {[%clk 00:41:24]} {[%emt 00:02:57]} b5
{[%clk 00:24:58]} {[%emt 00:00:34]} 27. Ne5 {[%clk 00:41:49]} {[%emt 00:00:05]}
bxa3 {[%clk 00:21:28]} {[%emt 00:04:00]} 28. bxa3 {[%clk 00:42:06]} {[%emt
00:00:13]} Rxa3 {[%clk 00:21:42]} {[%emt 00:00:16]} 29. Rxa3 {[%clk 00:41:17]}
{[%emt 00:01:20]} Rxa3 {[%clk 00:21:55]} {[%emt 00:00:17]} 30. Rc1 {[%clk
00:41:40]} {[%emt 00:00:07]} Kd6 {[%clk 00:19:57]} {[%emt 00:02:27]} 31. Rb1
{[%clk 00:37:30]} {[%emt 00:04:39]} Be8 {[%clk 00:16:32]} {[%emt 00:03:55]} 32.
Nc4+ {[%clk 00:34:42]} {[%emt 00:03:19]} bxc4 {[%clk 00:16:18]} {[%emt
00:00:44]} 33. e5+ {[%clk 00:35:08]} {[%emt 00:00:04]} Ke7 {[%clk 00:11:17]}
{[%emt 00:05:31]} 34. exf6+ {[%clk 00:35:13]} {[%emt 00:00:25]} gxf6 {[%clk
00:10:23]} {[%emt 00:01:23]} 35. dxc4 {[%clk 00:35:07]} {[%emt 00:00:37]} Rc3
{[%clk 00:09:55]} {[%emt 00:00:57]} 36. Bf1 {[%clk 00:33:22]} {[%emt 00:02:15]}
d3 {[%clk 00:06:00]} {[%emt 00:04:25]} 37. Kf2 {[%clk 00:28:39]} {[%emt
00:05:12]} Bg6 {[%clk 00:05:32]} 1/2-1/2

[Event "Swedish Chess Championship 2019: Kadett-SM"]
[Site "Stiga Sports Arena, Arenatorget 1, Eskilstuna, Sweden, Sweden"]
[Date "2019.07.14"]
[Round "9.5"]
[White "Nord, Gabriel"]
[Black "Ivarsson, Sebastian"]
[Result "1/2-1/2"]
[TimeControl "90 minutes for 40 moves + 30 minutes for the rest of the game + 30 seconds per move from move one"]
[WhiteFideId "1740660"]
[BlackFideId "1738593"]
[WhiteElo "1792"]
[BlackElo "2079"]

1. e4 {[%clk 01:30:57]} {[%emt 00:00:02]} e5 {[%clk 01:30:52]} {[%emt
00:00:09]} 2. Nf3 {[%clk 01:31:23]} {[%emt 00:00:04]} Nc6 {[%clk 01:31:17]}
{[%emt 00:00:05]} 3. Bb5 {[%clk 01:31:48]} {[%emt 00:00:04]} a6 {[%clk
01:31:44]} {[%emt 00:00:04]} 4. Ba4 {[%clk 01:32:14]} {[%emt 00:00:04]} Nf6
{[%clk 01:32:09]} {[%emt 00:00:04]} 5. O-O {[%clk 01:32:38]} {[%emt 00:00:06]}
Be7 {[%clk 01:32:33]} {[%emt 00:00:06]} 6. Re1 {[%clk 01:33:05]} {[%emt
00:00:03]} b5 {[%clk 01:32:56]} {[%emt 00:00:06]} 7. Bb3 {[%clk 01:33:32]}
{[%emt 00:00:04]} d6 {[%clk 01:33:19]} {[%emt 00:00:07]} 8. c3 {[%clk
01:33:57]} {[%emt 00:00:05]} O-O {[%clk 01:33:28]} {[%emt 00:00:20]} 9. h3
{[%clk 01:34:24]} {[%emt 00:00:03]} Nb8 {[%clk 01:32:33]} {[%emt 00:01:25]} 10.
d4 {[%clk 01:34:48]} {[%emt 00:00:06]} Nbd7 {[%clk 01:32:58]} {[%emt 00:00:04]}
11. Nbd2 {[%clk 01:35:11]} {[%emt 00:00:08]} Bb7 {[%clk 01:32:34]} {[%emt
00:00:54]} 12. Bc2 {[%clk 01:35:36]} {[%emt 00:00:06]} Re8 {[%clk 01:31:37]}
{[%emt 00:01:26]} 13. Nf1 {[%clk 01:36:02]} {[%emt 00:00:04]} Bf8 {[%clk
01:31:38]} {[%emt 00:00:27]} 14. Ng3 {[%clk 01:36:29]} {[%emt 00:00:04]} g6
{[%clk 01:31:55]} {[%emt 00:00:13]} 15. a4 {[%clk 01:34:01]} {[%emt 00:02:59]}
c5 {[%clk 01:30:30]} {[%emt 00:01:54]} 16. d5 {[%clk 01:34:25]} {[%emt
00:00:05]} c4 {[%clk 01:30:44]} {[%emt 00:00:17]} 17. Bg5 {[%clk 01:34:33]}
{[%emt 00:00:22]} h6 {[%clk 01:29:50]} {[%emt 00:01:23]} 18. Be3 {[%clk
01:34:47]} {[%emt 00:00:17]} Nc5 {[%clk 01:28:31]} {[%emt 00:01:48]} 19. Bxc5
{[%clk 01:35:08]} {[%emt 00:00:10]} dxc5 {[%clk 01:28:52]} {[%emt 00:00:09]} 20.
Qe2 {[%clk 01:34:24]} {[%emt 00:01:15]} Bg7 {[%clk 01:19:39]} {[%emt 00:09:43]}
21. Ra2 {[%clk 01:32:26]} {[%emt 00:02:28]} Qc7 {[%clk 01:12:48]} {[%emt
00:07:20]} 22. Rea1 {[%clk 01:31:53]} {[%emt 00:01:03]} Red8 {[%clk 01:08:16]}
{[%emt 00:05:02]} 23. Nd2 {[%clk 01:29:08]} {[%emt 00:03:15]} Ne8 {[%clk
01:04:16]} {[%emt 00:04:30]} 24. Ngf1 {[%clk 01:17:57]} {[%emt 00:11:42]} Nd6
{[%clk 01:03:26]} {[%emt 00:01:20]} 25. Ne3 {[%clk 01:18:06]} {[%emt 00:00:21]}
Qd7 {[%clk 00:58:10]} {[%emt 00:05:46]} 26. Qf3 {[%clk 01:12:47]} {[%emt
00:05:49]} Rf8 {[%clk 00:53:09]} {[%emt 00:05:31]} 27. g4 {[%clk 01:11:19]}
{[%emt 00:01:58]} Qe7 {[%clk 00:43:36]} {[%emt 00:10:03]} 28. Qg3 {[%clk
01:06:45]} {[%emt 00:05:03]} Qf6 {[%clk 00:41:01]} {[%emt 00:03:05]} 29. axb5
{[%clk 01:03:50]} {[%emt 00:03:26]} axb5 {[%clk 00:40:53]} {[%emt 00:00:39]} 30.
Rxa8 {[%clk 01:03:56]} {[%emt 00:00:23]} Rxa8 {[%clk 00:41:09]} {[%emt
00:00:13]} 31. Rxa8+ {[%clk 01:04:24]} {[%emt 00:00:03]} Bxa8 {[%clk 00:41:16]}
{[%emt 00:00:24]} 32. h4 {[%clk 01:01:50]} {[%emt 00:03:03]} Qe7 {[%clk
00:30:34]} {[%emt 00:11:12]} 33. f3 {[%clk 01:01:12]} {[%emt 00:01:07]} Qa7
{[%clk 00:30:21]} {[%emt 00:00:43]} 34. Qe1 {[%clk 01:00:00]} {[%emt 00:01:42]}
Bf6 {[%clk 00:25:54]} {[%emt 00:04:57]} 35. Ng2 {[%clk 00:59:42]} {[%emt
00:00:49]} b4 {[%clk 00:24:56]} {[%emt 00:01:28]} 36. Bb1 {[%clk 00:57:45]}
{[%emt 00:02:27]} Qa5 {[%clk 00:22:10]} {[%emt 00:03:12]} 37. Qc1 {[%clk
00:55:23]} {[%emt 00:02:55]} Be7 {[%clk 00:17:59]} {[%emt 00:04:42]} 38. Ne3
{[%clk 00:53:01]} {[%emt 00:02:53]} Qb5 {[%clk 00:10:46]} {[%emt 00:07:43]} 39.
cxb4 {[%clk 00:52:05]} {[%emt 00:01:26]} cxb4 {[%clk 00:11:04]} {[%emt
00:00:12]} 40. Ndxc4 {[%clk 00:51:43]} {[%emt 00:00:52]} Qc5 {[%clk 00:11:13]}
{[%emt 00:00:20]} 41. Kg2 {[%clk 00:48:25]} {[%emt 00:03:48]} Bxh4 {[%clk
00:10:38]} {[%emt 00:01:06]} 42. Qc2 {[%clk 00:46:25]} {[%emt 00:02:29]} b3
{[%clk 00:06:46]} {[%emt 00:04:22]} 43. Qe2 {[%clk 00:46:25]} {[%emt 00:00:31]}
Nxc4 {[%clk 00:04:06]} {[%emt 00:03:09]} 44. Nxc4 {[%clk 00:46:48]} {[%emt
00:00:06]} Bb7 {[%clk 00:03:29]} {[%emt 00:01:07]} 45. Bd3 {[%clk 00:34:54]}
{[%emt 00:12:25]} Ba6 {[%clk 00:29:57]} {[%emt 00:04:03]} 1/2-1/2

[Event "Swedish Chess Championship 2019: Kadett-SM"]
[Site "Stiga Sports Arena, Arenatorget 1, Eskilstuna, Sweden, Sweden"]
[Date "2019.07.14"]
[Round "9.6"]
[White "Bensryd, Hampus"]
[Black "Backstrom, Viggo"]
[Result "1/2-1/2"]
[TimeControl "90 minutes for 40 moves + 30 minutes for the rest of the game + 30 seconds per move from move one"]
[WhiteFideId "1738330"]
[BlackFideId "1739719"]
[WhiteElo "1938"]
[BlackElo "1510"]

1. e4 {[%clk 01:30:56]} e5 {[%clk 01:30:30]} {[%emt 00:08:57]} 2. Nf3 {[%clk
01:31:14]} Nc6 {[%clk 01:30:30]} 3. d4 {[%clk 01:31:14]} exd4 {[%clk 01:30:30]}
4. Bc4 {[%clk 01:31:14]} Bb4+ {[%clk 01:30:30]} 5. c3 {[%clk 01:31:14]} dxc3
{[%clk 01:30:30]} 6. bxc3 {[%clk 01:31:14]} Ba5 {[%clk 01:30:30]} 7. O-O {[%clk
01:31:14]} d6 {[%clk 01:30:30]} 8. Qb3 {[%clk 01:31:14]} Qe7 {[%clk 01:30:30]}
9. Bg5 {[%clk 01:31:14]} Nf6 {[%clk 01:30:30]} 10. e5 {[%clk 01:31:14]} dxe5
{[%clk 01:30:30]} 11. Re1 {[%clk 01:31:14]} O-O {[%clk 01:30:30]} 12. Nbd2
{[%clk 01:31:14]} h6 {[%clk 01:30:30]} 13. Bf4 {[%clk 01:31:14]} e4 {[%clk
01:30:30]} 14. Re2 {[%clk 01:31:14]} Bb6 {[%clk 01:30:30]} 15. Rae1 {[%clk
01:31:14]} Na5 {[%clk 01:30:30]} 16. Qa4 {[%clk 01:31:14]} Nxc4 {[%clk
01:30:30]} 17. Nxc4 {[%clk 01:31:14]} Bg4 {[%clk 01:30:30]} 18. Rd2 Bxf3 {[%clk
00:21:12]} 19. gxf3 {[%clk 00:44:28]} {[%emt 00:00:19]} Rfd8 {[%clk 00:19:58]}
{[%emt 00:01:45]} 20. Rxd8+ {[%clk 00:43:55]} {[%emt 00:01:02]} Rxd8 {[%clk
00:19:42]} {[%emt 00:00:45]} 21. Nxb6 {[%clk 00:43:27]} {[%emt 00:00:59]} axb6
{[%clk 00:19:47]} {[%emt 00:00:25]} 22. fxe4 {[%clk 00:43:45]} {[%emt
00:00:13]} Qc5 {[%clk 00:14:39]} {[%emt 00:05:38]} 23. Qc2 {[%clk 00:43:16]}
{[%emt 00:00:57]} Qc4 {[%clk 00:12:50]} {[%emt 00:02:19]} 24. Be5 {[%clk
00:41:25]} {[%emt 00:02:21]} Ng4 {[%clk 00:12:13]} {[%emt 00:01:08]} 25. Bg3
{[%clk 00:40:37]} {[%emt 00:01:17]} Rd3 {[%clk 00:10:14]} {[%emt 00:02:30]} 26.
Qe2 {[%clk 00:39:16]} {[%emt 00:01:50]} Qxc3 {[%clk 00:10:22]} {[%emt
00:00:22]} 27. Rd1 {[%clk 00:38:31]} {[%emt 00:01:15]} Rxd1+ {[%clk 00:09:27]}
{[%emt 00:01:26]} 28. Qxd1 {[%clk 00:38:56]} {[%emt 00:00:05]} Ne5 {[%clk
00:07:08]} {[%emt 00:02:49]} 29. Qd8+ {[%clk 00:38:48]} {[%emt 00:00:37]} Kh7
{[%clk 00:07:25]} {[%emt 00:00:14]} 30. Qc8 {[%clk 00:38:33]} {[%emt 00:00:44]}
Qe1+ {[%clk 00:07:34]} {[%emt 00:00:22]} 31. Kg2 {[%clk 00:38:45]} {[%emt
00:00:17]} Qxe4+ {[%clk 00:07:54]} {[%emt 00:00:11]} 32. Kf1 {[%clk 00:38:16]}
{[%emt 00:00:59]} Qh1+ {[%clk 00:07:39]} {[%emt 00:00:45]} 33. Ke2 {[%clk
00:38:37]} {[%emt 00:00:09]} Qf3+ {[%clk 00:07:47]} {[%emt 00:00:23]} 34. Kf1
{[%clk 00:38:48]} {[%emt 00:00:18]} Qh1+ {[%clk 00:06:59]} {[%emt 00:01:18]} 35.
Ke2 {[%clk 00:39:13]} {[%emt 00:00:05]} Qf3+ {[%clk 00:05:29]} {[%emt
00:02:00]} 36. Kf1 {[%clk 00:39:20]} {[%emt 00:00:22]} Nd3 {[%clk 00:04:11]}
{[%emt 00:01:48]} 37. Qxc7 {[%clk 00:39:18]} {[%emt 00:00:33]} Qd1+ {[%clk
00:03:15]} {[%emt 00:01:26]} 38. Kg2 {[%clk 00:39:36]} {[%emt 00:00:11]} Ne1+
{[%clk 00:03:21]} {[%emt 00:00:24]} 39. Kf1 {[%clk 00:39:14]} {[%emt 00:00:52]}
Nd3+ {[%clk 00:02:55]} {[%emt 00:00:56]} 40. Kg2 {[%clk 00:39:38]} {[%emt
00:00:06]} Ne1+ {[%clk 00:01:32]} {[%emt 00:01:54]} 41. Kf1 {[%clk 00:40:02]}
{[%emt 00:00:06]} Nd3+ {[%clk 00:00:52]} {[%emt 00:01:10]} 42. Kg2 {[%clk
00:39:15]} {[%emt 00:01:16]} 1/2-1/2